fUSD/lending_fUSD_20240525
["ID","MTS","AMOUNT","RATE_DAILY","PERIOD"]
[327933952,1716671432411,-151.94392889,0.00022733,2]
[327933953,1716671432420,-187.8392898,0.00022798,2]
[327933954,1716671432430,-154.20664879,0.00022936,2]
[327933955,1716671432442,-156.36674314,0.00023053,2]
[327933956,1716671432453,-960.0,0.0002327,2]
[327933957,1716671432462,-2000.0,0.0002329,2]
[327933958,1716671432472,-250.0,0.00023297,2]
[327933959,1716671432483,-468.75,0.00023351,2]
[327933960,1716671432493,-1393.27,0.00023351,2]
[327933961,1716671432503,-4753.44,0.00023359,2]
[327933962,1716671432512,-338.61,0.00023432,2]
[327933963,1716671432525,-187.8,0.00023461,2]
[327933964,1716671432535,-171.14,0.00023487,2]
[327933965,1716671432545,-812.45,0.00023593,2]
[327933966,1716671432555,-200.0,0.00023732,2]
[327933967,1716671432564,-250.0,0.00023777,2]
[327933968,1716671432574,-164.18,0.00023825,2]
[327933969,1716671432584,-657.04,0.00023866,2]
[327933970,1716671432594,-156.36674314,0.00023907,2]
[327933971,1716671432603,-159.81,0.00023931,2]
[327933972,1716671432613,-159.81,0.00023943,2]
[327933973,1716671432623,-159.81,0.00023955,2]
[327933974,1716671432633,-159.81,0.00023967,2]
[327933975,1716671432643,-159.81,0.00023979,2]
[327933976,1716671432652,-159.81,0.00023991,2]
[327933977,1716671432662,-159.81,0.00024003,2]
[327933978,1716671432672,-159.81,0.00024015,2]
[327933979,1716671432681,-159.81,0.00024027,2]
[327933980,1716671432691,-159.81,0.00024039,2]
[327933981,1716671432700,-159.81,0.00024051,2]
[327933982,1716671432710,-167.0,0.0002431,2]
[327933983,1716671432719,-160.107484,0.00024543,2]
[327933984,1716671432729,-156.36674314,0.00024712,2]
[327933985,1716671432739,-151.94392889,0.00024813,2]
[327933986,1716671432748,-156.36674314,0.00025085,2]
[327933987,1716671432757,-151.94392889,0.00025417,2]
[327933988,1716671432767,-154.15132367,0.0002558,2]
[327933989,1716671432777,-1400.0,0.00025636,2]
[327933990,1716671432786,-1200.0,0.00025636,2]
[327933991,1716671432795,-330.0,0.0002583,2]
[327933992,1716671432804,-657.04,0.0002613,2]
[327933993,1716671432814,-960.0,0.00026179,2]
[327933994,1716671432823,-1400.0,0.00026184,2]
[327933995,1716671432833,-1200.0,0.00026184,2]
[327933996,1716671432842,-1000.0,0.000262,2]
[327933997,1716671432852,-400.0,0.000263,9]
[327933998,1716671432861,-155.28926142,0.00026308,2]
[327933999,1716671432870,-157.44228527,0.00026314,2]
[327934000,1716671432880,-812.45,0.00026333,2]
[327934001,1716671432889,-900.0,0.000264,9]
[327934002,1716671432899,-1300.0,0.000265,9]
[327934003,1716671432908,-818.88979131,0.0002651,2]
[327934004,1716671432918,-1607.89478303,0.00026511,2]
[327934005,1716671432927,-420.93,0.00026548,2]
[327934006,1716671432936,-163.58,0.00026548,2]
[327934007,1716671432946,-1800.0,0.000266,9]
[327934008,1716671432955,-257.0726,0.00026635,2]
[327934009,1716671432970,-3743.1689,0.00026635,2]
[327934010,1716671432979,-2200.0,0.000267,9]
[327934011,1716671432989,-1000.0,0.000267,2]
[327934012,1716671432998,-1400.0,0.00026732,2]
[327934013,1716671433008,-1200.0,0.00026732,2]
[327934014,1716671433018,-160.84571027,0.00026735,2]
[327934015,1716671433027,-929.96527456,0.00026735,2]
[327934016,1716671433038,-18140.84042851,0.00026735,2]
[327934017,1716671433047,-33049.06317594,0.00026735,2]
[327934018,1716671433057,-2778.2712,0.00026735,2]
[327934019,1716671433066,-2121.3675,0.00026735,2]
[327934020,1716671433076,-695.3295,0.00026735,2]
[327934021,1716671433085,-311.72039902,0.00026744,2]
[327934022,1716671433095,-400.0,0.000268,9]
[327934023,1716671433105,-155.0,0.00026833,2]
[327934024,1716671433115,-405.93422196,0.00026833,2]
[327934025,1716671433125,-803.78557685,0.00026833,2]
[327934026,1716671433135,-155.80838078,0.00026833,2]
[327934027,1716671433144,-1185.96692507,0.00026833,2]
[327934028,1716671433154,-155.51434087,0.00026833,2]
[327934029,1716671433163,-170.67008826,0.00026833,2]
[327934030,1716671433173,-198.76885415,0.00026833,2]
[327934031,1716671433182,-192.11357774,0.00026833,2]
[327934032,1716671433192,-758.60585522,0.00026834,10]
[327934033,1716671433564,-316.01311854,0.00026834,10]
[327934034,1716671433574,-1773.62143972,0.00026834,2]
[327934035,1716671433583,-1194.50022477,0.00026834,2]
[327934036,1716671433594,-394.2204,0.00026834,2]
[327934037,1716671433606,-601.41403316,0.00026834,2]
[327934038,1716671433617,-562.4996314,0.00026834,2]
[327934039,1716671433629,-382.31751455,0.00026834,2]
[327934040,1716671433640,-1120.97999995,0.00026834,2]
[327934041,1716671433651,-1765.98400049,0.00026834,2]
[327934042,1716671433662,-217.71427774,0.00026834,2]
[327934043,1716671433671,-155.14783748,0.00026834,2]
[327934044,1716671433681,-155.0,0.00026834,2]
[327934045,1716671433693,-136.71516141,0.00026835,2]
[327934058,1716671438107,-643.9738315,0.00013151,2]
[327934059,1716671438117,-258.17880168,0.00026835,2]
[327934060,1716671438128,-527.14081138,0.00026835,2]
[327934061,1716671438140,-217709.97672553,0.00026835,2]
[327934062,1716671438150,-1000.0,0.00026835,2]
[327934063,1716671438159,-30082.3153,0.00026835,2]
[327934064,1716671438169,-13805.32939679,0.00026835,2]
[327934065,1716671438180,-2220.0,0.00026835,2]
[327934066,1716671438191,-13900.2,0.00026835,2]
[327934067,1716671438203,-789.30350907,0.00026835,2]
[327934068,1716671438214,-1869.7443923,0.00026835,2]
[327934069,1716671438230,-8337.58177977,0.00026835,2]
[327934070,1716671438242,-48451.50379769,0.00026835,2]
[327934071,1716671438253,-1010.92811315,0.00026835,2]
[327934072,1716671438264,-1856.5631075,0.00026835,2]
[327934073,1716671438276,-393.26039802,0.00026835,2]
[327934074,1716671438288,-522.96384006,0.00026835,2]
[327934075,1716671438300,-6842.62166565,0.00026835,2]
[327934076,1716671438309,-929.9652745,0.00026844,2]
[327934077,1716671438319,-400.0,0.000269,9]
[327934078,1716671438329,-929.9652745,0.00026954,2]
[327934079,1716671438338,-200.0,0.00027004,2]
[327934080,1716671438347,-500.0,0.00027017,2]
[327934081,1716671438357,-200.0,0.00027018,2]
[327934082,1716671438366,-500.0,0.00027018,2]
[327934083,1716671438375,-200.0,0.00027018,2]
[327934084,1716671438386,-156.36674314,0.00027029,2]
[327934085,1716671438395,-156.36674314,0.00027061,2]
[327934086,1716671438405,-929.9652745,0.00027063,2]
[327934087,1716671438414,-500.0,0.00027135,2]
[327934088,1716671438423,-929.9652745,0.00027172,2]
[327934089,1716671438433,-150.0,0.000272,2]
[327934090,1716671438447,-344.0,0.000272,2]
[327934091,1716671438457,-486.0,0.000272,11]
[327934092,1716671438466,-150.0,0.000272,5]
[327934093,1716671438475,-1000.0,0.000272,2]
[327934094,1716671438486,-9851.0,0.000272,3]
[327934095,1716671438496,-224.10469775,0.00027225,2]
[327934096,1716671438505,-1381.71812519,0.00027233,2]
[327934097,1716671438515,-271.32,0.00027233,2]
[327934098,1716671438527,-4985.29154323,0.00027233,2]
[327934099,1716671438537,-234.22233037,0.00027233,2]
[327934100,1716671438547,-409.70150583,0.00027233,2]
[327934101,1716671438556,-155.15326466,0.00027233,2]
[327934102,1716671438566,-155.0,0.00027233,2]
[327934103,1716671438575,-7948.38011688,0.00027233,2]
[327934104,1716671438591,-426.35735425,0.00027233,2]
[327934110,1716671440708,-2197.31280686,0.00027233,2]
[327934111,1716671440718,-281.74618343,0.00027233,2]
[327934112,1716671440727,-1000.0,0.00027234,2]
[327934113,1716671440736,-4575.84012937,0.00027234,2]
[327934114,1716671440746,-330.42373066,0.00027235,2]
[327934115,1716671440755,-1447.77449,0.00027235,2]
[327934116,1716671440765,-54988.34549605,0.00027235,2]
[327934117,1716671440779,-959.54275483,0.00027235,2]
[327934118,1716671442666,-1200.0,0.00027235,2]
[327934119,1716671442678,-500.0,0.00027235,2]
[327934122,1716671443137,-28284.12391554,0.00027235,2]
[327934133,1716671444058,-2904.07301737,0.00027235,2]
[327934134,1716671444288,-17399.99999999,0.00027235,2]
[327934135,1716671444305,-250.0,0.00027235,2]
[327934137,1716671446427,-15013.88,0.0002638,2]
[327934138,1716671446436,-410.05596771,0.00027232,2]
[327934139,1716671446448,-203.97494543,0.00027234,2]
[327934140,1716671446459,-5949.62257532,0.00027235,2]
[327934150,1716671554807,448.6513915,0.00031,120]
[327934151,1716671605079,1020.0,0.0003,120]
[327934152,1716672041416,1700.0,0.000181,10]
[327934164,1716672411231,-173.61802843,0.0001397,2]
[327934165,1716672411250,-38.6591585,0.00013971,2]
[327934181,1716672632689,-346.63871635,0.00013971,2]
[327934183,1716672632698,-174.76,0.00013973,2]
[327934185,1716672632708,-154.23,0.00013973,2]
[327934188,1716672632718,-3969.87379491,0.00017259,2]
[327934190,1716672632727,-3656.81855356,0.000181,2]
[327934192,1716672632742,-103.18144644,0.000181,2]
[327934194,1716672632752,-10509.63918783,0.000181,2]
[327934197,1716672632763,-679.0,0.000181,2]
[327934200,1716672632774,-697.0883778,0.000181,2]
[327934204,1716672632785,-25611.28925267,0.000181,2]
[327934206,1716672632794,-181.77,0.0002,2]
[327934207,1716672632803,-155.0,0.0002,2]
[327934209,1716672632812,-716.54,0.00021399,2]
[327934211,1716672632822,-166.23,0.00021918,2]
[327934213,1716672632831,-157.31386291,0.00022186,2]
[327934215,1716672632840,-499.99,0.00022234,2]
[327934217,1716672632851,-157.31386291,0.0002229,2]
[327934218,1716672632860,-151.55258824,0.00022529,2]
[327934219,1716672632870,-156.96936253,0.00022539,2]
[327934220,1716672632878,-157.64177241,0.00022773,2]
[327934221,1716672632888,-152.04184786,0.00022968,2]
[327934222,1716672632897,-157.31386291,0.00022986,2]
[327934223,1716672632907,-166.66666666,0.00023113,2]
[327934224,1716672632916,-1750.43807122,0.00023151,2]
[327934225,1716672632926,-576.0,0.00023152,2]
[327934226,1716672632935,-250.0,0.00023287,2]
[327934227,1716672632944,-250.0,0.0002329,2]
[327934228,1716672632954,-151.55258824,0.00023389,2]
[327934229,1716672632963,-154.41142695,0.00023443,2]
[327934230,1716672632972,-2000.0,0.00023501,2]
[327934231,1716672632982,-940.28,0.00023541,2]
[327934232,1716672632991,-321.88,0.00023578,2]
[327934233,1716672633000,-716.54,0.00023662,2]
[327934234,1716672633010,-154.41142695,0.00023672,2]
[327934235,1716672633019,-424.0,0.00023674,2]
[327934236,1716672633028,-152.04184786,0.00023711,2]
[327934237,1716672633038,-151.55258824,0.00023794,2]
[327934238,1716672633047,-451.86,0.00023938,2]
[327934239,1716672633057,-433.26102806,0.00024,2]
[327934240,1716672633066,-152.6332844,0.00024124,2]
[327934241,1716672633075,-152.04184786,0.00024172,2]
[327934243,1716672633084,-154.41142695,0.00024258,2]
[327934245,1716672633094,-151.55258824,0.00024363,2]
[327934247,1716672633104,-151.55258824,0.00024576,2]
[327934249,1716672633113,-8458.52,0.00024658,4]
[327934250,1716672633122,-242.57,0.00024658,4]
[327934251,1716672633132,-156.96936253,0.00024732,2]
[327934252,1716672633145,-169.00998554,0.00024764,2]
[327934253,1716672633154,-151.55258824,0.00024814,2]
[327934254,1716672633164,-157.31386291,0.00024881,2]
[327934255,1716672633173,-151.55258824,0.0002492,2]
[327934256,1716672633183,-157.54884506,0.00024948,2]
[327934257,1716672633192,-153.11765814,0.00024956,2]
[327934258,1716672633201,-28704.91546014,0.00025,4]
[327934259,1716672633210,-1272.69875268,0.00025,2]
[327934260,1716672633220,-154.41142695,0.00025039,2]
[327934261,1716672633229,-151.55258824,0.0002504,2]
[327934262,1716672633239,-156.96936253,0.00025271,2]
[327934263,1716672633248,-157.64177241,0.00025273,2]
[327934264,1716672633258,-157.64177241,0.00025449,2]
[327934265,1716672633267,-158.87328605,0.00025499,2]
[327934266,1716672633276,-180.0,0.00025559,2]
[327934267,1716672633286,-157.31386291,0.00025566,2]
[327934268,1716672633295,-1200.0,0.00025636,2]
[327934269,1716672633305,-1100.0,0.00025636,2]
[327934270,1716672633314,-3742.1812,0.00025704,2]
[327934271,1716672633323,-150.0,0.00025804,2]
[327934272,1716672633332,-289.0,0.00025804,2]
[327934273,1716672633342,-5137.0,0.00025804,2]
[327934274,1716672633354,-492.055,0.00025804,2]
[327934275,1716672633363,-37920.0,0.00025804,2]
[327934276,1716672633372,-5760.0,0.00025804,2]
[327934277,1716672633381,-1018.295,0.00025804,2]
[327934278,1716672633391,-1464.0,0.00025804,2]
[327934279,1716672633400,-1412.27528136,0.00025872,2]
[327934280,1716672633410,-955.56684863,0.00025873,2]
[327934281,1716672633420,-157.31386291,0.0002589,2]
[327934282,1716672633430,-218.04,0.0002589,2]
[327934283,1716672633439,-716.54,0.00025926,2]
[327934284,1716672633449,-157.64177241,0.00025955,2]
[327934285,1716672633458,-576.0,0.00026046,2]
[327934286,1716672633468,-150.0,0.00026079,2]
[327934287,1716672633477,-11720.0,0.000261,5]
[327934288,1716672633486,-1200.0,0.00026184,2]
[327934289,1716672633496,-157.20715686,0.00026184,2]
[327934290,1716672633508,-942.79284314,0.00026184,2]
[327934291,1716672633518,-1856.0,0.000262,2]
[327934292,1716672633527,-1667.19819251,0.00026224,2]
[327934293,1716672633540,-16321.24007765,0.00026224,2]
[327934294,1716672633556,-17245.0,0.00026224,2]
[327934295,1716672633568,-12720.96378447,0.00026224,2]
[327934296,1716672633583,-483.71393226,0.00026224,2]
[327934297,1716672633596,-958.06973501,0.00026224,2]
[327934298,1716672633605,-940.28,0.00026281,2]
[327934299,1716672633615,-154.41142695,0.00026282,2]
[327934300,1716672633624,-295.23699565,0.00026298,2]
[327934301,1716672633634,-195.20511524,0.00026299,2]
[327934302,1716672633643,-162.88563555,0.00026299,2]
[327934303,1716672633653,-3000.0,0.000263,2]
[327934304,1716672633663,-312.42073866,0.000263,2]
[327934305,1716672633672,-11180.98811602,0.00026301,2]
[327934306,1716672633687,-38535.6315429,0.00026301,2]
[327934307,1716672633707,-6828.9003,0.00026301,2]
[327934308,1716672633718,-6055.9025272,0.00026301,2]
[327934309,1716672633730,-3387.27751388,0.00026301,2]
[327934310,1716672633739,-156.96936253,0.00026505,2]
[327934311,1716672633748,-157.64177241,0.00026548,2]
[327934312,1716672633758,-152.04184786,0.00026566,2]
[327934313,1716672633767,-306.344902,0.00026575,2]
[327934314,1716672633776,-424.0,0.00026634,2]
[327934315,1716672633786,-926.99561138,0.00026687,2]
[327934316,1716672633795,-155.0,0.00026687,2]
[327934317,1716672633804,-1200.0,0.00026732,2]
[327934318,1716672633814,-1100.0,0.00026732,2]
[327934319,1716672633823,-14.22898494,0.00026735,2]
[327934320,1716672633835,-882.36091506,0.00026735,2]
[327934321,1716672633846,-2533.21754195,0.00026891,2]
[327934322,1716672633869,-17634.60458142,0.00026891,2]
[327934323,1716672633881,-2777.7159202,0.00026891,2]
[327934324,1716672633893,-326.91429722,0.00026891,2]
[327934325,1716672633904,-469.3608413,0.00026891,2]
[327934326,1716672633924,-3799.68030269,0.00026891,2]
[327934327,1716672633936,-472.14322502,0.00026891,2]
[327934328,1716672633948,-896.40832532,0.00026891,2]
[327934329,1716672633967,-711.72882134,0.00026891,2]
[327934330,1716672633986,-389.84087267,0.00026891,2]
[327934331,1716672633997,-464.17382848,0.00026891,2]
[327934341,1716672638373,-721.24517432,0.00025804,2]
[327934342,1716672638387,-339.75482568,0.00025804,2]
[327934343,1716672638397,-1225.0,0.00025804,2]
[327934344,1716672638406,-2165.60952075,0.00026891,2]
[327934345,1716672638418,-8449.0,0.00026891,2]
[327934346,1716672638434,-5731.89280292,0.00026891,2]
[327934347,1716672638569,-2390.55985511,0.00026891,2]
[327934348,1716672638581,-183.33498544,0.00026891,2]
[327934349,1716672638592,-157.64177241,0.00026898,2]
[327934350,1716672638602,-186.053426,0.00026952,2]
[327934351,1716672638611,-176.060262,0.00026952,2]
[327934352,1716672638621,-157.569706,0.00026952,2]
[327934353,1716672638630,-136.07119785,0.00026952,2]
[327934354,1716672638642,-25.63981415,0.00026952,2]
[327934355,1716672638652,-159.534243,0.00026952,2]
[327934356,1716672638662,-172.737954,0.00026952,2]
[327934357,1716672638672,-152.278991,0.00026952,2]
[327934358,1716672638682,-156.312706,0.00026952,2]
[327934359,1716672638691,-161.71101,0.00026952,2]
[327934360,1716672638701,-152.278991,0.00026952,2]
[327934361,1716672638711,-159.534243,0.00026952,2]
[327934362,1716672638721,-156.312705,0.00026952,2]
[327934363,1716672638731,-172.73795,0.00026952,2]
[327934364,1716672638741,-186.053426,0.00026952,2]
[327934365,1716672638750,-157.569703,0.00026952,2]
[327934366,1716672638760,-155.62024413,0.0002696,2]
[327934367,1716672638769,-236.17384857,0.00026963,2]
[327934369,1716672638779,-670.39932534,0.0002697,2]
[327934371,1716672638788,-1002.21524053,0.00027,4]
[327934373,1716672638798,-200.0,0.00027018,2]
[327934375,1716672638807,-1000.0,0.00027018,2]
[327934376,1716672638816,-500.0,0.00027018,2]
[327934378,1716672638826,-200.0,0.00027018,2]
[327934380,1716672638835,-120.82560527,0.00027019,2]
[327934382,1716672638848,-36.81616714,0.00027019,2]
[327934384,1716672638857,-2000.0,0.000271,2]
[327934386,1716672638867,-1267.98023286,0.000271,2]
[327934389,1716672638882,-732.01976714,0.000271,2]
[327934391,1716672638891,-1040.26303355,0.000271,2]
[327934393,1716672638902,-959.73696645,0.000271,2]
[327934395,1716672638911,-2426.2325675,0.0002711,2]
[327934412,1716672641206,-1263.0,0.00025804,2]
[327934413,1716672641216,-556.1524515,0.0002711,2]
[327934414,1716672641226,-410.7092011,0.0002711,2]
[327934415,1716672641245,-1589.2907989,0.0002711,2]
[327934416,1716672641255,-3844.5913,0.0002711,2]
[327934417,1716672641264,-2000.0,0.0002712,2]
[327934418,1716672641274,-3443.68,0.00027123,2]
[327934419,1716672641284,-2000.0,0.0002713,2]
[327934420,1716672641293,-3323.895645,0.0002714,2]
[327934421,1716672641303,-1183.37776132,0.00027146,2]
[327934422,1716672641312,-500.0,0.0002717,2]
[327934423,1716672641322,-500.0,0.0002717,2]
[327934424,1716672641332,-550.47863445,0.0002717,2]
[327934425,1716672641341,-500.0,0.0002717,2]
[327934426,1716672641351,-579.0,0.000272,2]
[327934427,1716672641361,-486.0,0.000272,11]
[327934428,1716672641370,-344.0,0.000272,2]
[327934429,1716672641380,-189.0,0.000272,11]
[327934430,1716672641390,-150.0,0.000272,2]
[327934431,1716672641400,-150.0,0.000272,5]
[327934432,1716672641410,-156.27073444,0.00027232,2]
[327934433,1716672641419,-155.46527609,0.00027232,2]
[327934434,1716672641428,-155.0,0.00027232,2]
[327934435,1716672641447,-3153.45245642,0.00027232,2]
[327934436,1716672641458,-155.0,0.00027232,2]
[327934437,1716672641467,-224.3459268,0.00027232,2]
[327934438,1716672641477,-155.26273373,0.00027232,2]
[327934439,1716672641487,-155.32441655,0.00027233,2]
[327934440,1716672641497,-325.92527891,0.00027233,2]
[327934441,1716672641506,-472.45726553,0.00027233,2]
[327934442,1716672641516,-157.77334761,0.00027233,2]
[327934443,1716672641526,-388.05362397,0.00027233,2]
[327934444,1716672641536,-3300.10952867,0.00027233,2]
[327934445,1716672641545,-1064.16497992,0.00027233,2]
[327934446,1716672641555,-204.91045887,0.00027233,2]
[327934447,1716672641564,-200.5495015,0.00027233,2]
[327934448,1716672641574,-2813.98016787,0.00027233,2]
[327934449,1716672641583,-528.98539506,0.00027233,2]
[327934450,1716672641593,-155.66318784,0.00027233,2]
[327934451,1716672641602,-199.77077791,0.00027233,2]
[327934452,1716672641611,-155.0,0.00027233,2]
[327934453,1716672641621,-176.42914555,0.00027233,2]
[327934454,1716672641630,-300.61664862,0.00027233,2]
[327934455,1716672641640,-865.16675532,0.00027234,2]
[327934456,1716672642131,-2143.66867146,0.00027234,2]
[327934457,1716672642168,-983.95365328,0.00027234,2]
[327934458,1716672642180,-1164.39990789,0.00027234,2]
[327934459,1716672642220,-3867.99627292,0.00027234,2]
[327934483,1716672643686,-30416.96491147,0.00027234,2]
[327934484,1716672643698,-23118.40304618,0.00027234,2]
[327934492,1716672644321,-7490.21370889,0.00027234,2]
[327934493,1716672644333,-547.59336367,0.00027234,2]
[327934496,1716672646524,-555.87112408,0.00015,2]
[327934505,1716672933149,265.92391406,0.00015,14]
[327934510,1716672994948,291378.00861624,0.00013,2]
[327934519,1716673024714,289.37236127,0.00013,2]
[327934530,1716673038700,166.9317008,0.00013,2]
[327934546,1716673831665,-303.04672511,0.00013862,2]
[327934547,1716673831674,-153.71948284,0.00013862,2]
[327934548,1716673831685,-249.12146501,0.00013862,2]
[327934549,1716673831695,-155.0,0.00013863,2]
[327934550,1716673831704,-365.73198455,0.00013863,2]
[327934551,1716673831713,-80.14655044,0.00013864,2]
[327934552,1716673831726,-74.85344956,0.00013864,2]
[327934553,1716673831735,-489.86704597,0.00013864,2]
[327934554,1716673831746,-716.92501291,0.00013864,2]
[327934555,1716673831755,-337.29571537,0.00013865,2]
[327934556,1716673831764,-150.0,0.0001389,2]
[327934557,1716673831773,-266.56703532,0.00013962,2]
[327934558,1716673831782,-346.59123551,0.00013971,2]
[327934559,1716673831791,-152.82,0.00013973,2]
[327934560,1716673831801,-253.13001085,0.00014248,2]
[327934561,1716673831810,-290.26608429,0.00014999,2]
[327934562,1716673831819,-2522.54352902,0.00015,2]
[327934563,1716673831831,-7406.11240629,0.00015,2]
[327934564,1716673831843,-935.25814264,0.00015,2]
[327934565,1716673831855,-6241.32019456,0.00015,2]
[327934566,1716673831866,-9990.98746124,0.00015,2]
[327934567,1716673831881,-252.73231956,0.00015,2]
[327934568,1716673831893,-642.3977412,0.00015,2]
[327934569,1716673831905,-3403.03176915,0.00015,2]
[327934570,1716673831914,-409.57557879,0.00015,2]
[327934571,1716673831924,-16165.43363979,0.00015,2]
[327934572,1716673831934,-3384.0,0.000182,2]
[327934573,1716673831945,-747.0,0.000182,2]
[327934575,1716673831954,-155.0,0.0002,2]
[327934577,1716673831964,-155.0,0.0002,2]
[327934579,1716673831973,-155.0,0.0002,2]
[327934581,1716673831982,-8550.79143235,0.0002,4]
[327934583,1716673831992,-668.61,0.00020379,2]
[327934584,1716673832001,-1050.0,0.00021,2]
[327934585,1716673832010,-5514.19481281,0.00021,2]
[327934586,1716673832020,-6772.86623355,0.000219,2]
[327934587,1716673832030,-801.0,0.000219,2]
[327934588,1716673832040,-922.68,0.00022018,2]
[327934589,1716673832052,-160.85599689,0.00022235,2]
[327934590,1716673832062,-151.4641126,0.00022355,2]
[327934591,1716673832072,-154.14656404,0.00022373,2]
[327934592,1716673832081,-160.09234494,0.00022445,2]
[327934593,1716673832091,-157.87,0.00022481,2]
[327934594,1716673832102,-200.0,0.0002251,2]
[327934595,1716673832112,-151.4641126,0.00022514,2]
[327934596,1716673832121,-155.55477165,0.00022567,2]
[327934597,1716673832131,-167.43398669,0.00022593,2]
[327934598,1716673832141,-376.55,0.00022596,2]
[327934599,1716673832151,-250.0,0.000226,2]
[327934600,1716673832159,-156.3654648,0.0002262,2]
[327934601,1716673832170,-668.61,0.00022643,2]
[327934602,1716673832179,-250.0,0.00022744,2]
[327934603,1716673832188,-683.62,0.00022776,2]
[327934604,1716673832198,-155.55477165,0.00022888,2]
[327934605,1716673832208,-155.28,0.00022955,2]
[327934606,1716673832218,-155.28,0.00022971,2]
[327934607,1716673832227,-155.28,0.00022988,2]
[327934608,1716673832237,-1100.0,0.00023,2]
[327934609,1716673832248,-155.28,0.00023004,2]
[327934610,1716673832257,-155.28,0.0002302,2]
[327934611,1716673832267,-155.28,0.00023037,2]
[327934612,1716673832276,-155.28,0.00023053,2]
[327934613,1716673832286,-157.87,0.00023067,2]
[327934614,1716673832295,-155.28,0.0002307,2]
[327934615,1716673832305,-654.4,0.00023125,2]
[327934616,1716673832315,-167.49601557,0.00023346,2]
[327934617,1716673832324,-151.4641126,0.00023361,2]
[327934618,1716673832333,-160.85599689,0.00023572,2]
[327934619,1716673832343,-157.87,0.00023652,2]
[327934620,1716673832352,-151.4641126,0.00023723,2]
[327934621,1716673832362,-160.85599689,0.00023823,2]
[327934622,1716673832371,-156.3654648,0.00023936,2]
[327934623,1716673832381,-160.85599689,0.00023939,2]
[327934624,1716673832391,-155.55477165,0.00024055,2]
[327934625,1716673832401,-151.4641126,0.00024157,2]
[327934626,1716673832410,-167.43398669,0.00024505,2]
[327934627,1716673832420,-155.55477165,0.00024607,2]
[327934628,1716673832429,-155.55477165,0.00024609,2]
[327934629,1716673832439,-154.14656404,0.00024743,2]
[327934630,1716673832448,-922.68,0.0002477,2]
[327934631,1716673832458,-668.61,0.00024906,2]
[327934632,1716673832468,-151.4641126,0.00024915,2]
[327934633,1716673832477,-1272.69875268,0.00025,2]
[327934634,1716673832487,-9556.8642182,0.00025,2]
[327934635,1716673832496,-152.55696008,0.00025063,2]
[327934636,1716673832506,-1500.0,0.000255,2]
[327934637,1716673832515,-683.62,0.00025516,2]
[327934638,1716673832524,-157.46032733,0.00025627,2]
[327934639,1716673832533,-900.0,0.00025636,2]
[327934640,1716673832542,-160.85599689,0.00025693,2]
[327934641,1716673832551,-154.14656404,0.0002577,2]
[327934642,1716673832561,-1162.4,0.00025777,2]
[327934643,1716673832570,-36923.779,0.00025777,2]
[327934644,1716673832720,-330.0,0.00025777,2]
[327934645,1716673832730,-155.64583634,0.00025802,2]
[327934646,1716673832739,-218.04,0.0002589,2]
[327934647,1716673832748,-160.97405741,0.00026003,2]
[327934648,1716673832757,-654.4,0.00026016,2]
[327934649,1716673832767,-153.55245088,0.0002603,2]
[327934650,1716673832776,-153.5524509,0.00026038,2]
[327934651,1716673832785,-800.0,0.0002611,2]
[327934652,1716673832795,-152.57521365,0.00026162,2]
[327934653,1716673832804,-900.0,0.00026184,2]
[327934654,1716673832813,-155.55477165,0.00026227,2]
[327934655,1716673832823,-154.43702878,0.00026496,2]
[327934656,1716673832832,-275.710412,0.00026575,2]
[327934657,1716673832841,-150.0,0.00026575,2]
[327934658,1716673832850,-327.16,0.00026575,2]
[327934659,1716673832859,-843.14,0.00026575,2]
[327934660,1716673832868,-178.06496912,0.00026715,2]
[327934661,1716673832877,-900.0,0.00026732,2]